bitfinex/quotes_SOLUSD_20240824
["timestamp","ask_amount","ask_price","bid_price","bid_amount"]
[1724539391436,21.8012,159.51,159.46,6.2711]
[1724539391662,10.88651416,159.49,159.46,6.2711]
[1724539393335,21.8012,159.51,159.49,6.2698]
[1724539393336,15.5319,159.51,159.49,6.2698]
[1724539393556,15.5319,159.51,159.41,20.0]
[1724539393557,10.88651416,159.5,159.42,1.56963312]
[1724539393717,10.88651416,159.5,159.43,1.56963312]
[1724539393916,10.88651416,159.5,159.41,20.0]
[1724539393917,10.88651416,159.5,159.42,4.4013882]
[1724539394113,10.88651416,159.5,159.43,1.56963312]
[1724539394531,10.88651416,159.5,159.46,6.2708]
[1724539395423,15.5319,159.51,159.47,6.2706]
[1724539395630,10.88651416,159.5,159.47,6.2706]
[1724539396429,10.88651416,159.54,159.44,10.88651416]
[1724539396636,10.88651416,159.54,159.51,6.2691]
[1724539397041,10.88651416,159.54,159.5,6.2695]
[1724539397449,10.88651416,159.53,159.5,6.2695]
[1724539399840,10.88651416,159.51,159.49,6.2699]
[1724539400042,10.88651416,159.51,159.45,20.0]
[1724539400245,10.88651416,159.49,159.47,6.2706]
[1724539402345,49.81485664,159.52,159.47,6.2706]
[1724539402532,10.88651416,159.48,159.47,6.2706]
[1724539403953,10.88651416,159.48,159.4,2.82996214]
[1724539403954,10.88651416,159.48,159.46,6.2711]
[1724539407252,15.1006,159.5,159.39,6.0542]
[1724539407448,10.88651416,159.47,159.39,13.37049071]
[1724539407751,10.88651416,159.47,159.39,10.54147009]
[1724539408151,21.3702,159.5,159.45,6.2715]
[1724539408358,10.88651416,159.47,159.45,6.2715]
[1724539411752,10.88651416,159.47,159.44,6.2718]
[1724539416955,10.88651416,159.45,159.4,2.82525072]
[1724539417267,10.88651416,159.45,159.43,6.2722]
[1724539417639,10.88651416,159.45,159.4,20.0]
[1724539417843,10.88651416,159.43,159.37,27.21871137]
[1724539418245,10.88651416,159.43,159.42,6.2727]
[1724539420180,6.2707,159.47,159.42,6.2727]
[1724539420480,10.88651416,159.45,159.42,6.2727]
[1724539421648,6.2703,159.48,159.42,6.2727]
[1724539421875,10.88651416,159.45,159.37,20.0]
[1724539422072,45.0,159.47,159.37,38.12015234]
[1724539422073,10.88651416,159.47,159.37,38.12015234]
[1724539422374,10.88651416,159.47,159.39,10.88651416]
[1724539422554,10.88651416,159.47,159.4,20.0]
[1724539423057,10.88651416,159.47,159.4,21.25446415]
[1724539423376,10.88651416,159.47,159.45,6.2712]
[1724539424784,10.88651416,159.48,159.45,6.2712]
[1724539424951,10.88651416,159.48,159.4,21.25446415]
[1724539424952,10.88651416,159.48,159.46,6.271]
[1724539425781,15.1006,159.5,159.48,6.2702]
[1724539425958,10.88651416,159.52,159.49,6.2699]
[1724539431976,15.5122,159.54,159.51,6.2691]
[1724539432176,10.88651416,159.52,159.51,6.2691]
[1724539435369,10.88651416,159.52,159.49,6.2696]
[1724539438372,10.88651416,159.52,159.5,6.2694]
[1724539441167,10.88651416,159.52,159.49,6.2699]
[1724539441371,10.88651416,159.5,159.49,6.2699]
[1724539448391,10.88651416,159.5,159.47,6.2707]
[1724539453702,22.1671,159.56,159.5,6.2695]
[1724539453876,10.88651416,159.55,159.5,6.2695]
[1724539455105,45.0,159.54,159.5,6.2695]
[1724539455407,10.88651416,159.53,159.5,6.2695]
[1724539455706,10.88651416,159.51,159.49,6.2699]
[1724539456695,10.88651416,159.51,159.5,6.2695]
[1724539457083,10.88651416,159.52,159.5,6.2695]
[1724539457287,10.88651416,159.53,159.5,6.2695]
[1724539461499,45.0,159.54,159.5,6.2695]
[1724539461696,10.88651416,159.53,159.5,6.2695]
[1724539462922,45.0,159.54,159.48,20.0]
[1724539463129,55.88651416,159.55,159.46,21.25394653]
[1724539463295,55.88651416,159.55,159.47,1.56924014]
[1724539463498,55.88651416,159.55,159.48,1.25393288]
[1724539463794,45.0,159.55,159.48,1.25393288]
[1724539463996,10.88651416,159.57,159.49,2.82307799]
[1724539464201,10.88651416,159.57,159.5,1.56923889]
[1724539464497,10.88651416,159.57,159.49,1.2538391]
[1724539464697,10.88651416,159.57,159.5,1.56895974]
[1724539464898,10.88651416,159.59,159.51,1.56895974]
[1724539465098,10.88651416,159.59,159.5,21.56895974]
[1724539465299,10.88651416,159.59,159.55,6.2676]
[1724539465799,15.8999,159.6,159.57,6.2664]
[1724539465998,26.78641416,159.6,159.57,6.2664]
[1724539466897,26.78641416,159.6,159.56,6.2671]
[1724539467194,10.88651416,159.58,159.55,6.2675]
[1724539472332,10.88651416,159.56,159.54,6.2679]
[1724539473411,10.88651416,159.56,159.53,6.2683]
[1724539473615,10.88651416,159.54,159.53,6.2683]
[1724539473815,10.88651416,159.54,159.52,6.2687]
[1724539474034,10.88651416,159.54,159.49,1.56899011]
[1724539474213,10.88651416,159.54,159.46,16.0882]
[1724539474214,10.88651416,159.54,159.48,1.569096]
[1724539474411,6.2673,159.56,159.51,6.2691]
[1724539474412,10.88651416,159.52,159.51,6.2691]
[1724539475510,10.88651416,159.52,159.5,6.2695]
[1724539480219,16.4818,159.54,159.5,6.2695]
[1724539480405,10.88651416,159.52,159.5,6.2695]
[1724539480610,16.4818,159.54,159.45,1.56924571]
[1724539480831,16.4818,159.58,159.46,12.14044084]
[1724539481010,10.88651416,159.57,159.53,6.268]
[1724539482132,10.88651416,159.57,159.54,6.268]
[1724539485140,10.88651416,159.55,159.53,6.2682]
[1724539488252,10.88651416,159.57,159.53,6.2682]
[1724539488551,10.88651416,159.55,159.53,6.2682]
[1724539489250,22.7484,159.58,159.54,6.268]
[1724539489560,10.88651416,159.55,159.53,6.2683]
[1724539489731,10.88651416,159.55,159.52,6.2688]
[1724539490035,10.88651416,159.53,159.52,6.2688]
[1724539490436,10.88651416,159.53,159.51,6.2691]
[1724539494356,6.2673,159.56,159.51,6.2691]
[1724539494547,10.88651416,159.53,159.51,6.2691]
[1724539494751,45.0,159.52,159.49,6.2699]
[1724539495056,10.88651416,159.5,159.49,6.2699]
[1724539495234,10.88651416,159.5,159.47,6.2704]
[1724539495438,10.88651416,159.5,159.4,21.1802]
[1724539496362,10.88651416,159.5,159.48,6.2702]
[1724539497632,10.88651416,159.5,159.4,21.1802]
[1724539497830,10.88651416,159.48,159.4,21.1802]
[1724539499161,10.88651416,159.48,159.46,6.271]
[1724539500453,10.88651416,159.48,159.44,6.2716]
[1724539500664,10.88651416,159.45,159.36,32.06671416]
[1724539500831,22.7223,159.52,159.38,18.12015234]
[1724539501038,10.88651416,159.49,159.47,6.2707]
[1724539501367,16.4534,159.52,159.48,6.2703]
[1724539501566,10.88651416,159.49,159.46,6.2708]
[1724539502438,10.88651416,159.49,159.47,6.2705]
[1724539503860,16.4534,159.52,159.4,21.1802]
[1724539504065,16.4534,159.52,159.44,10.88651416]
[1724539504280,16.4534,159.52,159.45,21.25407076]
[1724539504451,16.4534,159.52,159.45,20.0]
[1724539504778,16.4534,159.52,159.49,6.2699]
[1724539505640,16.4534,159.52,159.5,6.2695]
[1724539507076,16.4534,159.52,159.49,6.2699]
[1724539509550,16.4534,159.52,159.5,6.2694]
[1724539510686,16.4534,159.52,159.49,6.2699]
[1724539510991,10.88651416,159.51,159.49,6.2699]
[1724539511357,10.88651416,159.51,159.48,6.2703]
[1724539511557,10.88651416,159.49,159.48,6.2703]
[1724539511861,10.88651416,159.49,159.4,21.1802]
[1724539512064,10.88651416,159.46,159.45,6.2715]
[1724539513182,10.88651416,159.46,159.45,26.2715]
[1724539514183,10.88651416,159.46,159.45,6.2715]
[1724539519096,10.88651416,159.48,159.45,6.2715]
[1724539521168,9.88651416,159.48,159.45,6.2715]
[1724539523465,16.4534,159.52,159.4,10.88651416]
[1724539523691,16.4534,159.52,159.49,6.2698]
[1724539523973,10.88651416,159.51,159.48,6.2703]
[1724539524389,10.88651416,159.51,159.47,6.2707]
[1724539524993,10.88651416,159.49,159.47,6.2707]
[1724539525383,10.88651416,159.49,159.45,6.2711]
[1724539525584,10.88651416,159.46,159.45,6.2711]
[1724539526299,10.88651416,159.46,159.44,6.2718]
[1724539529014,26.88861416,159.46,159.35,9.11116989]
[1724539529192,10.88651416,159.42,159.34,16.1089]
[1724539529890,10.88651416,159.42,159.41,6.2731]
[1724539530083,10.88651416,159.44,159.42,6.2723]
[1724539530628,10.88651416,159.44,159.41,6.273]
[1724539530786,10.88651416,159.42,159.41,6.273]
[1724539531184,55.88651416,159.42,159.39,6.2736]
[1724539531385,10.88651416,159.4,159.39,6.2736]
[1724539535019,10.88651416,159.42,159.41,6.2729]
[1724539537825,55.88651416,159.42,159.34,16.1089]
[1724539538032,10.88651416,159.39,159.38,6.2743]
[1724539538315,51.2716,159.45,159.4,6.2733]
[1724539538512,10.88651416,159.43,159.41,6.273]
[1724539542999,10.88651416,159.43,159.4,6.2734]
[1724539543194,10.88651416,159.41,159.4,6.2734]
[1724539543408,10.88651416,159.41,159.38,6.2739]
[1724539543608,10.88651416,159.41,159.39,6.2739]
[1724539543807,10.88651416,159.4,159.39,6.2739]
[1724539545222,45.0,159.42,159.39,6.2739]
[1724539545396,10.88651416,159.4,159.39,6.2739]
[1724539547207,10.88651416,159.4,159.37,6.2743]
[1724539547409,10.88651416,159.38,159.37,6.2743]
[1724539549299,10.88651416,159.38,159.32,0.8155703]
[1724539549300,10.88651416,159.38,159.34,6.2758]
[1724539549517,15.661,159.4,159.34,6.2758]
[1724539549518,45.0,159.37,159.34,6.2758]
[1724539549714,10.88651416,159.35,159.34,6.2758]
[1724539550821,45.0,159.37,159.34,6.2758]
[1724539551004,10.88651416,159.35,159.34,6.2758]
[1724539552004,10.88651416,159.35,159.33,6.2762]
[1724539552207,10.88651416,159.34,159.33,6.2762]
[1724539553309,10.88651416,159.34,159.32,0.8155703]
[1724539553926,10.88651416,159.34,159.32,7.0917703]
[1724539554828,10.88651416,159.34,159.33,6.2762]
[1724539555909,10.88651416,159.36,159.34,6.2758]
[1724539556425,45.0,159.38,159.35,6.2754]
[1724539556621,10.88651416,159.39,159.32,2.07071475]
[1724539557032,15.661,159.4,159.32,0.8155703]
[1724539557208,26.54751416,159.4,159.32,20.8155703]
[1724539557626,15.8764,159.44,159.32,37.4056703]
[1724539557936,10.88651416,159.43,159.33,6.09749872]
[1724539558107,10.88651416,159.43,159.34,20.0]
[1724539558303,10.88651416,159.41,159.39,6.2738]
[1724539558936,10.88651416,159.41,159.38,6.2742]
[1724539560833,10.88651416,159.39,159.38,6.2742]
[1724539562008,59.42245664,159.44,159.34,20.0]
[1724539562009,10.88651416,159.41,159.39,6.2737]
[1724539563736,10.88651416,159.41,159.34,20.0]
[1724539563737,10.88651416,159.41,159.38,6.2741]
[1724539563940,10.88651416,159.39,159.38,6.2741]
[1724539564417,10.88651416,159.39,159.37,6.2746]
[1724539564614,10.88651416,159.39,159.38,6.2743]
[1724539567138,10.88651416,159.39,159.37,6.2746]
[1724539567437,10.88651416,159.39,159.36,6.2749]
[1724539567621,10.88651416,159.37,159.36,6.2749]
[1724539567825,10.88651416,159.37,159.35,6.2754]
[1724539568213,10.88651416,159.37,159.32,0.8155703]
[1724539568414,10.88651416,159.34,159.32,0.8155703]
[1724539570227,10.88651416,159.34,159.33,6.2762]
[1724539570739,10.88651416,159.34,159.32,0.8155703]
[1724539572341,10.88651416,159.34,159.33,6.2762]
[1724539573929,10.88651416,159.34,159.32,7.0921703]
[1724539574627,10.88651416,159.34,159.32,0.8155703]
[1724539576230,45.0,159.33,159.32,0.8155703]
[1724539576633,10.88651416,159.34,159.32,0.8155703]
[1724539576830,10.88651416,159.34,159.32,7.0919703]
[1724539577041,15.6927,159.38,159.32,0.8155703]
[1724539577042,10.88651416,159.36,159.32,0.8155703]
[1724539577224,45.0,159.35,159.32,0.8155703]
[1724539577633,10.88651416,159.36,159.33,6.2759]
[1724539578217,10.88651416,159.36,159.32,2.38635749]
[1724539578534,10.88651416,159.34,159.32,7.0918703]
[1724539578732,10.88651416,159.34,159.32,8.66265792]
[1724539578925,10.88651416,159.36,159.33,6.2762]
[1724539579124,45.0,159.35,159.33,6.2762]
[1724539579723,10.88651416,159.36,159.33,6.2762]
[1724539579942,10.88651416,159.37,159.35,6.2754]
[1724539580935,10.88651416,159.37,159.34,6.2758]
[1724539582225,15.6927,159.38,159.32,0.8155703]
[1724539582419,10.88651416,159.36,159.32,5.33657111]
[1724539582623,10.88651416,159.36,159.32,0.8155703]
[1724539582843,10.88651416,159.36,159.32,5.33657111]
[1724539583160,10.88651416,159.36,159.34,6.2758]
[1724539585129,10.88651416,159.36,159.33,6.2762]
[1724539585331,10.88651416,159.34,159.33,6.2762]
[1724539586339,10.88651416,159.34,159.32,7.0921703]
[1724539590246,10.88651416,159.34,159.32,0.8155703]
[1724539595766,45.0,159.33,159.32,0.8155703]
[1724539595969,45.0,159.33,159.24,23.02141358]
[1724539596170,22.044,159.32,159.27,6.2785]
[1724539596663,45.0,159.31,159.27,6.2785]
[1724539596872,10.88651416,159.28,159.27,6.2785]
[1724539597447,10.88651416,159.28,159.21,6.4755]
[1724539597448,55.88651416,159.31,159.28,6.278]
[1724539599785,10.88651416,159.29,159.21,6.4755]
[1724539600077,10.88651416,159.26,159.22,20.0]
[1724539600587,45.0,159.31,159.28,6.2782]
[1724539600752,15.7672,159.32,159.22,30.88651416]
[1724539601168,15.7672,159.32,159.3,6.2774]
[1724539601976,6.1458,159.37,159.22,30.88651416]
[1724539601977,12.4207,159.37,159.32,6.2765]
[1724539602166,10.88651416,159.35,159.32,6.2765]
[1724539602975,10.88651416,159.33,159.31,6.277]
[1724539605584,10.88651416,159.33,159.3,6.2774]
[1724539611090,10.88651416,159.31,159.3,6.2774]
[1724539611275,55.88651416,159.31,159.29,6.2777]
[1724539611465,55.88651416,159.31,159.28,6.2782]
[1724539613661,45.0,159.31,159.28,6.2782]
[1724539613863,10.88651416,159.29,159.28,6.2782]
[1724539614386,10.88651416,159.29,159.27,6.2785]
[1724539615761,10.88651416,159.29,159.28,6.2782]
[1724539616761,10.88651416,159.31,159.28,6.2782]
[1724539616960,45.0,159.3,159.28,6.2782]
[1724539620996,10.88651416,159.34,159.31,6.277]
[1724539621365,10.88651416,159.32,159.26,2.86282168]
[1724539621670,10.88651416,159.32,159.24,22.86282168]
[1724539621861,10.88651416,159.3,159.25,2.86282168]
[1724539622185,10.88651416,159.3,159.24,20.0]
[1724539624477,10.88651416,159.3,159.25,2.86369001]
[1724539626481,10.88651416,159.3,159.24,20.0]
[1724539626681,10.88651416,159.3,159.25,2.86161357]
[1724539626877,10.88651416,159.3,159.24,20.0]
[1724539627088,45.0,159.29,159.26,6.2786]
[1724539627272,10.88651416,159.28,159.26,6.2786]
[1724539628689,55.88651416,159.29,159.27,6.2786]
[1724539629695,10.88651416,159.29,159.28,6.2782]
[1724539630187,10.88651416,159.3,159.28,6.2782]
[1724539632374,6.2759,159.34,159.26,2.8610938]
[1724539632576,10.88651416,159.32,159.27,2.86016117]
[1724539632800,10.88651416,159.32,159.24,20.0]
[1724539633099,10.88651416,159.32,159.25,2.85986229]
[1724539633307,10.88651416,159.32,159.26,2.85986229]
[1724539633590,10.88651416,159.32,159.27,2.85986229]
[1724539633811,10.88651416,159.32,159.24,20.0]
[1724539633986,10.88651416,159.32,159.25,2.85978883]
[1724539634184,10.88651416,159.32,159.3,6.2774]
[1724539634796,10.88651416,159.34,159.3,6.2774]
[1724539634969,45.0,159.33,159.3,6.2774]
[1724539637683,10.88651416,159.34,159.26,15.8508]
[1724539637880,16.231,159.36,159.32,6.2763]
[1724539638077,10.88651416,159.37,159.28,9.3045713]
[1724539638276,10.88651416,159.37,159.29,24.11666427]
[1724539638474,10.88651416,159.37,159.3,2.8612713]
[1724539638674,10.88651416,159.37,159.31,2.8612713]
[1724539638976,10.88651416,159.37,159.29,21.25539297]
[1724539639189,45.0,159.36,159.34,6.2758]
[1724539639796,22.2814,159.4,159.36,6.275]
[1724539639797,16.1422,159.4,159.36,6.275]
[1724539640100,10.88651416,159.37,159.35,6.2754]
[1724539640270,10.88651416,159.37,159.34,6.2758]
[1724539649815,10.88651416,159.37,159.32,1.5708448]
[1724539650099,10.88651416,159.35,159.32,6.2766]
[1724539653690,10.88651416,159.35,159.29,20.0]
[1724539653887,55.88651416,159.36,159.33,6.2762]
[1724539654093,10.88651416,159.36,159.33,6.2762]
[1724539661004,10.88651416,159.36,159.32,6.2765]
[1724539661199,45.0,159.35,159.32,6.2765]
[1724539662208,10.88651416,159.34,159.31,6.277]
[1724539662407,10.88651416,159.32,159.3,6.2774]
[1724539662610,10.88651416,159.32,159.28,6.2779]
[1724539662826,10.88651416,159.3,159.27,6.2783]
[1724539663029,16.3795,159.34,159.27,6.2783]
[1724539663327,10.88651416,159.31,159.27,6.2783]
[1724539665026,55.88651416,159.33,159.28,6.2779]
[1724539665620,10.88651416,159.31,159.28,6.2779]
[1724539667737,10.88651416,159.29,159.25,2.86681198]
[1724539667914,10.88651416,159.29,159.25,20.0]
[1724539669323,10.88651416,159.29,159.26,6.2789]
[1724539671331,45.0,159.3,159.28,6.2782]
[1724539671513,10.88651416,159.31,159.28,6.2782]
[1724539672118,10.88651416,159.31,159.29,6.2777]
[1724539672424,10.88651416,159.31,159.25,20.0]
[1724539673547,10.88651416,159.31,159.28,6.2782]
[1724539673716,10.88651416,159.29,159.28,6.2782]
[1724539674029,10.88651416,159.29,159.25,20.0]
[1724539674030,10.88651416,159.29,159.27,6.2785]
[1724539680229,28.8108,159.34,159.28,6.2781]
[1724539680553,10.88651416,159.3,159.27,6.2785]
[1724539680944,10.88651416,159.28,159.25,6.279]
[1724539685653,10.88651416,159.28,159.26,6.279]
[1724539685866,6.2771,159.31,159.26,6.279]
[1724539686172,10.88651416,159.28,159.26,6.279]
[1724539689967,22.5346,159.34,159.23,1.25589296]
[1724539690176,10.88651416,159.29,159.23,20.0]
[1724539691257,10.88651416,159.27,159.23,20.0]
[1724539692053,10.88651416,159.27,159.25,6.279]
[1724539692667,10.88651416,159.27,159.26,6.279]
[1724539693270,45.0,159.28,159.26,6.279]
[1724539693474,10.88651416,159.27,159.2,6.1584]
[1724539693676,10.88651416,159.27,159.21,20.0]
[1724539701278,10.88651416,159.27,159.22,2.87835138]
[1724539702286,10.88651416,159.27,159.21,20.0]
[1724539702779,10.88651416,159.27,159.22,2.87835006]
[1724539703777,45.0,159.28,159.22,2.87835006]
[1724539703983,45.0,159.28,159.26,6.2789]
[1724539704885,55.88651416,159.28,159.25,6.2793]
[1724539707598,45.0,159.28,159.26,6.2786]
[1724539707764,55.88651416,159.28,159.21,20.0]
[1724539708098,10.88651416,159.25,159.22,6.2805]
[1724539708264,10.88651416,159.23,159.21,6.2809]
[1724539708659,25.93121416,159.23,159.2,2.87952994]
[1724539708974,10.88651416,159.21,159.17,7.4460704]
[1724539709171,10.88651416,159.21,159.16,0.8155703]
[1724539709491,10.88651416,159.21,159.17,7.44768872]
[1724539709791,10.88651416,159.21,159.18,6.2818]
[1724539711381,10.88651416,159.21,159.17,6.2825]
[1724539711889,17.16761416,159.21,159.16,7.0984703]
[1724539712107,10.88651416,159.18,159.16,7.0984703]
[1724539712968,15.0447,159.23,159.17,6.2825]
[1724539713300,10.88651416,159.21,159.17,6.2825]
[1724539713589,45.0,159.2,159.17,6.2825]
[1724539714089,10.88651416,159.21,159.18,6.282]
[1724539714403,10.88651416,159.21,159.19,6.2817]
[1724539714571,25.93121416,159.23,159.2,6.2814]
[1724539714769,45.0,159.22,159.2,6.2814]
[1724539716298,45.0,159.22,159.19,6.2817]
[1724539718089,45.0,159.22,159.2,6.2812]
[1724539718386,25.93121416,159.23,159.2,6.2812]
[1724539718685,10.88651416,159.23,159.16,2.07190917]
[1724539718896,10.88651416,159.25,159.16,22.07190917]
[1724539719079,10.88651416,159.25,159.16,20.8155703]
[1724539719383,10.88651416,159.23,159.22,6.2802]
[1724539719762,22.5543,159.27,159.22,6.2802]
[1724539719966,10.88651416,159.24,159.22,6.2802]
[1724539720784,6.2773,159.31,159.26,6.2789]
[1724539720971,10.88651416,159.29,159.24,6.2797]
[1724539722179,45.0,159.28,159.24,6.2797]
[1724539724473,10.88651416,159.27,159.25,6.2793]
[1724539727200,16.2756,159.32,159.29,6.2778]
[1724539727415,19.45207869,159.34,159.33,6.2762]
[1724539727416,6.56437869,159.34,159.33,6.2762]
[1724539727572,16.2756,159.38,159.31,1.25525645]
[1724539727765,6.2723,159.43,159.31,20.0]
[1724539727766,10.88651416,159.41,159.31,20.0]
[1724539727972,10.88651416,159.41,159.36,6.2747]
[1724539728408,10.88651416,159.41,159.37,6.2746]
[1724539728571,10.88651416,159.41,159.33,2.82575176]
[1724539728572,16.2756,159.42,159.4,6.2734]
[1724539728770,59.21835664,159.52,159.34,10.88651416]
[1724539728771,10.88651416,159.45,159.35,1.25479965]
[1724539728998,10.88651416,159.45,159.39,6.2736]
[1724539729410,10.88651416,159.43,159.37,6.2743]
[1724539729599,10.88651416,159.43,159.38,6.2742]
[1724539729973,10.88651416,159.43,159.37,6.2745]
[1724539730173,10.88651416,159.43,159.38,6.2742]
[1724539730377,45.0,159.42,159.38,6.2742]
[1724539733014,45.0,159.42,159.39,6.2738]
[1724539736925,45.0,159.42,159.4,6.2734]
[1724539737704,10.88651416,159.45,159.4,6.2734]
[1724539737908,45.0,159.44,159.4,6.2734]
[1724539739521,10.88651416,159.42,159.38,6.2739]
[1724539739824,10.88651416,159.4,159.38,6.2739]
[1724539743535,10.88651416,159.4,159.35,6.2751]
[1724539743831,45.0,159.39,159.35,6.2751]
[1724539744603,45.0,159.39,159.36,6.2749]
[1724539748850,45.0,159.39,159.31,16.91281416]
[1724539749023,10.88651416,159.41,159.37,6.2746]
[1724539749024,45.0,159.4,159.37,6.2746]
[1724539750542,45.0,159.4,159.31,6.0263]
[1724539750745,45.0,159.4,159.32,20.0]
[1724539752450,10.88651416,159.39,159.32,20.0]
[1724539752952,10.88651416,159.39,159.36,6.2749]
[1724539753119,45.0,159.38,159.36,6.2749]
[1724539755640,10.88651416,159.37,159.34,6.2755]
[1724539756722,45.0,159.38,159.34,6.2755]
[1724539756924,45.0,159.38,159.35,6.2754]
[1724539757233,45.0,159.38,159.36,6.2749]
[1724539757436,17.15991416,159.41,159.36,6.2749]
[1724539757639,45.0,159.4,159.36,6.2749]
[1724539757841,32.51851416,159.43,159.33,12.14162466]
[1724539758157,32.51851416,159.43,159.35,10.88651416]
[1724539758158,15.3593,159.43,159.35,10.88651416]
[1724539758321,15.3593,159.43,159.36,1.25478285]
[1724539758525,15.3593,159.43,159.34,20.0]
[1724539758526,26.24581416,159.43,159.34,20.0]
[1724539759247,26.24581416,159.43,159.35,1.25484523]
[1724539759446,26.24581416,159.43,159.38,6.2742]
[1724539759621,45.0,159.42,159.38,6.2742]
[1724539762259,15.3593,159.43,159.35,1.25484576]
[1724539762446,15.3593,159.43,159.4,6.2734]
[1724539763542,10.88651416,159.44,159.4,6.2734]
[1724539763862,16.2033,159.47,159.37,10.88651416]
[1724539764067,16.2033,159.47,159.38,21.25447215]
[1724539764266,16.2033,159.47,159.45,6.2715]
[1724539764936,10.88651416,159.46,159.38,20.0]
[1724539765136,10.88651416,159.46,159.36,30.88651416]
[1724539766973,27.08981416,159.47,159.36,30.88651416]
[1724539767141,27.08981416,159.47,159.38,10.88651416]
[1724539767340,27.08981416,159.47,159.39,20.0]
[1724539775466,10.88651416,159.45,159.39,20.0]
[1724539775766,10.88651416,159.45,159.36,20.0]
[1724539775963,10.88651416,159.45,159.37,4.53395563]
[1724539776172,10.88651416,159.45,159.37,11.92665673]
[1724539776352,10.88651416,159.45,159.38,20.0]
[1724539776970,10.88651416,159.45,159.36,20.0]
[1724539777180,10.88651416,159.45,159.37,4.53355]
[1724539777357,10.88651416,159.45,159.37,7.39179426]
[1724539777555,10.88651416,159.45,159.38,20.0]
[1724539778258,10.88651416,159.45,159.36,20.0]
[1724539778462,10.88651416,159.45,159.37,4.53404211]
[1724539779476,10.88651416,159.45,159.36,20.0]
[1724539779857,10.88651416,159.41,159.36,20.0]
[1724539780250,10.88651416,159.41,159.33,6.0958]
[1724539780251,10.88651416,159.41,159.34,20.0]
[1724539780958,10.88651416,159.41,159.33,6.0958]
[1724539781556,10.88651416,159.39,159.33,6.0958]
[1724539781754,10.88651416,159.35,159.32,7.39718673]
[1724539781973,10.88651416,159.35,159.32,6.2763]
[1724539783484,10.88651416,159.35,159.33,6.2762]
[1724539786899,6.2743,159.38,159.33,6.2762]
[1724539787215,10.88651416,159.35,159.33,6.2762]
[1724539790572,10.88651416,159.36,159.34,6.2758]
[1724539790786,10.88651416,159.38,159.34,6.2758]
[1724539793905,10.88651416,159.36,159.34,6.2758]
[1724539797805,10.88651416,159.38,159.35,6.2754]
[1724539798489,10.88651416,159.38,159.36,6.2749]
[1724539799103,10.88651416,159.38,159.35,6.2754]
[1724539799301,10.88651416,159.36,159.35,6.2754]
[1724539800319,10.88651416,159.38,159.35,6.2754]
[1724539800916,10.88651416,159.38,159.36,6.275]
[1724539801116,10.88651416,159.38,159.35,6.2754]
[1724539801527,10.88651416,159.36,159.27,26.06761416]
[1724539801688,10.88651416,159.36,159.34,6.2757]
[1724539802404,6.2735,159.4,159.35,6.2754]
[1724539802718,10.88651416,159.37,159.35,6.2754]
[1724539804715,45.0,159.39,159.36,6.2751]
[1724539804925,45.0,159.4,159.36,6.2751]
[1724539805217,55.88651416,159.4,159.36,6.2751]
[1724539806733,10.88651416,159.4,159.37,6.2746]
[1724539806938,10.88651416,159.4,159.32,1.25497497]
[1724539806939,10.88651416,159.4,159.38,6.2742]
[1724539807820,10.88651416,159.4,159.37,6.2746]
[1724539810815,16.3906,159.42,159.38,6.2739]
[1724539811140,27.27711416,159.42,159.39,6.2738]
[1724539811308,10.88651416,159.42,159.39,6.2738]
[1724539811736,10.88651416,159.42,159.4,6.2733]
[1724539812450,16.0212,159.46,159.41,6.2731]
[1724539812632,10.88651416,159.42,159.41,6.2731]
[1724539813332,10.88651416,159.44,159.41,6.2731]
[1724539814337,10.88651416,159.44,159.33,26.56161416]
[1724539814524,10.88651416,159.44,159.35,10.88651416]
[1724539814724,16.0212,159.46,159.36,26.2801]
[1724539814925,26.90771416,159.46,159.37,10.88651416]
[1724539815224,26.90771416,159.46,159.38,20.0]
[1724539815719,16.0212,159.46,159.38,20.0]
[1724539816039,26.90771416,159.46,159.38,20.0]
[1724539817443,10.88651416,159.44,159.38,20.0]
[1724539817742,10.88651416,159.44,159.37,20.0]
[1724539820640,10.88651416,159.41,159.33,15.6751]
[1724539820841,10.88651416,159.39,159.33,15.6751]